bitfinex-derivatives/quotes_ETHF0:USTF0_20241026
["timestamp","ask_amount","ask_price","bid_price","bid_amount"]
[1729946759440,1.71596669,2474.6,2474.5,1.31139669]
[1729946759647,1.71596669,2474.6,2474.5,1.71597669]
[1729946763852,2.16575669,2474.7,2474.6,0.40457]
[1729946767643,0.40457,2474.6,2474.5,4.92376669]
[1729946769040,1.71596669,2474.6,2474.5,3.2078]
[1729946770947,2.16196669,2474.6,2474.5,3.2078]
[1729946772544,0.4046,2474.4,2474.3,4.49241]
[1729946772747,1.71599669,2474.4,2474.3,4.49241]
[1729946775347,1.31139669,2474.4,2474.3,4.49241]
[1729946775552,1.71598669,2474.5,2474.3,5.39919669]
[1729946775751,1.71598669,2474.5,2474.4,0.4046]
[1729946776053,0.40458,2474.6,2474.5,0.40457]
[1729946776243,1.71597669,2474.6,2474.5,0.40457]
[1729946776448,1.71597669,2474.6,2474.5,0.85347]
[1729946777947,2.54797669,2474.6,2474.5,0.85347]
[1729946780153,0.4498,2474.7,2474.5,1.76029669]
[1729946780154,1.31139669,2474.7,2474.5,1.76029669]
[1729946780459,2.54794669,2474.7,2474.6,0.40457]
[1729946781347,1.71594669,2474.7,2474.6,0.40457]
[1729946785757,0.832,2474.8,2474.6,1.31139669]
[1729946785967,0.832,2474.8,2474.7,1.23145]
[1729946786862,2.54792669,2474.8,2474.7,1.23145]
[1729946789462,2.54792669,2474.8,2474.7,0.4196]
[1729946792562,2.95952669,2474.8,2474.7,0.4196]
[1729946793176,0.40457,2474.6,2474.5,1.26406]
[1729946793470,1.71596669,2474.6,2474.5,1.26406]
[1729946807279,1.23654,2474.8,2474.7,0.40455]
[1729946807875,0.83462,2475.0,2474.9,0.40452]
[1729946808180,2.14239669,2475.0,2474.8,0.4188]
[1729946808369,0.40452,2474.9,2474.8,0.82332]
[1729946813486,0.4482,2475.2,2474.8,5.77099669]
[1729946813785,0.4482,2475.2,2474.9,2.14029669]
[1729946813786,1.71589669,2475.0,2474.9,2.14029669]
[1729946814485,1.31139669,2475.0,2474.9,2.14029669]
[1729946814885,1.71589669,2475.0,2474.9,2.14029669]
[1729946815587,1.31139669,2475.0,2474.9,2.14029669]
[1729946815889,1.71589669,2475.0,2474.9,2.14029669]
[1729946816889,1.71589669,2475.0,2474.9,0.8289]
[1729946819493,0.40452,2474.9,2474.8,0.82333]
[1729946819696,2.12541669,2474.9,2474.8,0.82333]
[1729946819888,2.56831669,2474.9,2474.8,0.82333]
[1729946820786,2.56831669,2474.9,2474.8,0.40453]
[1729946821193,0.40453,2474.8,2474.7,3.61233]
[1729946821396,1.71592669,2474.8,2474.7,3.61233]
[1729946821696,2.16062669,2474.8,2474.7,3.61233]
[1729946821888,2.16062669,2474.8,2474.7,3.61235]
[1729946822088,2.16062669,2474.8,2474.7,3.2078]
[1729946822496,2.16062669,2474.8,2474.7,3.61235]
[1729946823507,2.16062669,2474.8,2474.7,0.40455]
[1729946824601,0.40455,2474.7,2474.6,4.02706]
[1729946824806,2.54054669,2474.7,2474.6,3.2078]
[1729946824990,3.37154669,2474.7,2474.6,3.2078]
[1729946826990,7.41234669,2474.7,2474.6,3.2078]
[1729946828301,7.00779669,2474.7,2474.4,0.40459]
[1729946828600,1.71597669,2474.5,2474.4,3.61239]
[1729946829905,2.15146669,2474.6,2474.5,0.40458]
[1729946835103,0.84007,2474.6,2474.5,1.71597669]
[1729946835604,0.831,2474.7,2474.6,0.40457]
[1729946835909,0.831,2474.7,2474.6,1.71596669]
[1729946837603,4.51919669,2475.0,2474.8,0.40453]
[1729946837806,4.0388,2475.0,2474.9,1.31139669]
[1729946838010,2.14239669,2475.1,2475.0,0.4045]
[1729946838400,2.14239669,2475.1,2475.0,0.8339]
[1729946839114,2.54687669,2475.1,2475.0,0.8339]
[1729946839506,2.54687669,2475.1,2475.0,0.4294]
[1729946839813,2.95347669,2475.1,2475.0,0.4294]
[1729946841005,2.95347669,2475.1,2475.0,0.8339]
[1729946842506,2.54687669,2475.1,2475.0,0.8339]
[1729946844212,2.54687669,2475.1,2475.0,0.4294]
[1729946844616,2.54687669,2475.1,2475.0,0.8339]
[1729946851721,0.831,2475.1,2475.0,2.14529669]
[1729946851930,0.40447,2475.2,2475.1,0.40448]
[1729946852129,0.40447,2475.2,2475.1,2.55797669]
[1729946852617,0.831,2475.4,2475.1,6.19349669]
[1729946852924,0.40441,2475.6,2475.5,0.40442]
[1729946853124,2.54679669,2475.7,2475.6,0.4044]
[1729946853333,0.4044,2475.6,2475.5,1.71579669]
[1729946853625,0.4044,2475.6,2475.5,2.13659669]
[1729946854423,0.8424,2475.8,2475.5,1.73219669]
[1729946854626,2.54679669,2475.7,2475.6,0.4044]
[1729946856129,1.72379669,2475.8,2475.6,1.31139669]
[1729946856325,1.71577669,2475.8,2475.7,0.40439]
[1729946856526,1.71577669,2475.8,2475.7,1.71578669]
[1729946857531,1.71577669,2475.8,2475.7,1.31139669]
[1729946857733,1.71577669,2475.8,2475.7,1.71578669]
[1729946859136,0.40438,2475.8,2475.7,1.71578669]
[1729946861339,2.14239669,2475.9,2475.7,1.71578669]
[1729946861340,0.831,2475.9,2475.8,0.40437]
[1729946861537,0.831,2475.9,2475.8,1.71576669]
[1729946862233,1.71572669,2476.1,2476.0,0.40434]
[1729946862234,2.54672669,2476.1,2476.0,0.40434]
[1729946862433,2.54672669,2476.1,2475.9,1.71573669]
[1729946862626,2.54672669,2476.1,2475.9,1.31139669]
[1729946863335,2.54672669,2476.1,2475.9,1.71573669]
[1729946863734,0.40434,2476.0,2475.9,1.71573669]
[1729946863936,1.23533,2476.1,2475.9,1.71573669]
[1729946864240,0.40434,2476.0,2475.9,1.71573669]
[1729946868141,2.54672669,2476.1,2476.0,0.40434]
[1729946872346,0.831,2476.1,2476.0,0.40434]
[1729946872645,2.54671669,2476.1,2476.0,0.40434]
[1729946874355,0.40432,2476.1,2476.0,1.71573669]
[1729946874650,0.831,2476.1,2476.0,1.71573669]
[1729946874849,1.64541,2476.2,2476.1,0.40432]
[1729946875147,1.64541,2476.2,2476.1,1.71571669]
[1729946875444,1.64541,2476.2,2476.1,2.13601669]
[1729946875445,1.6454,2476.2,2476.1,2.13601669]
[1729946877251,0.831,2476.2,2476.1,2.13601669]
[1729946877547,1.2563,2476.3,2476.2,0.4043]
[1729946877747,1.2563,2476.3,2476.2,1.71569669]
[1729946879140,1.6606,2476.3,2476.2,1.71569669]
[1729946880648,1.6606,2476.3,2476.1,1.73169669]
[1729946880649,2.56769669,2476.3,2476.1,1.73169669]
[1729946880852,1.71569669,2476.2,2476.1,1.73169669]
[1729946881549,1.71569669,2476.2,2476.1,2.13601669]
[1729946883053,0.4043,2476.2,2476.1,2.13601669]
[1729946885041,1.2343,2476.2,2476.1,2.13601669]
[1729946886051,1.2343,2476.2,2476.1,1.73169669]
[1729946887248,1.2343,2476.2,2476.1,2.13601669]
[1729946888148,1.2343,2476.2,2476.1,1.73169669]
[1729946889650,1.2343,2476.2,2476.1,2.13601669]
[1729946890155,1.2343,2476.2,2476.1,1.73169669]
[1729946890346,1.2343,2476.2,2476.1,2.13601669]
[1729946891052,1.2343,2476.2,2476.1,1.73169669]
[1729946891954,1.2343,2476.2,2476.1,2.13601669]
[1729946893757,1.2343,2476.2,2476.1,1.73169669]
[1729946893957,0.40432,2476.1,2476.0,3.2078]
[1729946894258,2.57181669,2476.1,2476.0,3.2078]
[1729946895054,1.26042,2476.1,2476.0,3.2078]
[1729946897259,6.61021669,2476.1,2476.0,3.2078]
[1729946899450,0.40437,2475.8,2475.7,2.12527669]
[1729946899647,0.40437,2475.8,2475.7,5.33307669]
[1729946900351,0.40437,2475.8,2475.7,3.6173]
[1729946900558,1.71576669,2475.8,2475.7,3.2078]
[1729946900754,2.16489669,2475.8,2475.6,1.71579669]
[1729946900964,0.40439,2475.7,2475.6,1.71579669]
[1729946901663,0.40439,2475.7,2475.6,1.31139669]
[1729946902458,0.40439,2475.7,2475.6,1.71579669]
[1729946906766,0.40439,2475.7,2475.6,1.31139669]
[1729946907369,0.40439,2475.7,2475.6,1.71579669]
[1729946908166,0.40439,2475.7,2475.6,1.31139669]
[1729946908359,0.40439,2475.7,2475.6,1.71579669]
[1729946912169,0.40439,2475.7,2475.6,1.71579669]
[1729946919681,0.40439,2475.7,2475.6,2.14029669]
[1729946923478,0.40439,2475.7,2475.6,2.55609669]
[1729946926374,0.83,2475.8,2475.6,2.15169669]
[1729946926673,0.83,2475.8,2475.7,0.40439]
[1729946926674,1.23438,2475.8,2475.7,0.40439]
[1729946929475,0.40439,2475.7,2475.6,2.55608669]
[1729946940579,1.31139669,2475.7,2475.5,0.4363]
[1729946940782,1.31139669,2475.7,2475.1,1.06065375]
[1729946940783,0.40443,2475.4,2475.3,0.436]
[1729946940985,0.40443,2475.4,2475.3,0.84045]
[1729946941387,0.40443,2475.4,2475.3,0.436]
[1729946941582,1.71582669,2475.4,2475.3,0.436]
[1729946946985,0.40443,2475.5,2475.4,0.40442]
[1729946947187,1.23439,2475.7,2475.6,0.40439]
[1729946947382,0.8741,2476.0,2475.6,1.31139669]
[1729946947587,0.83,2475.9,2475.8,1.71576669]
[1729946947984,0.40435,2475.9,2475.8,1.71576669]
[1729946948190,1.23435,2475.9,2475.8,1.71576669]
[1729946948688,0.83,2475.9,2475.8,1.71576669]
[1729946949989,1.23435,2475.9,2475.8,1.71576669]
[1729946953195,0.83,2475.9,2475.8,1.71576669]
[1729946953605,1.23435,2475.9,2475.8,1.71576669]
[1729946955998,2.54574669,2475.9,2475.8,1.71576669]
[1729946961007,1.23435,2475.9,2475.8,1.71576669]
[1729946962405,2.54574669,2475.9,2475.8,1.71576669]
[1729946972812,2.54574669,2475.9,2475.8,1.31139669]
[1729946973118,0.40437,2475.8,2475.7,0.8278]
[1729946973320,1.31139669,2475.8,2475.6,1.71579669]
[1729946973515,1.68239,2475.7,2475.6,1.71579669]
[1729946973716,1.68239,2475.7,2475.6,1.31139669]
[1729946973918,1.68239,2475.7,2475.6,1.72689669]
[1729946974532,1.68239,2475.7,2475.3,3.6575]
[1729946974533,2.58939669,2475.7,2475.3,3.6575]
[1729946974726,0.40443,2475.4,2475.3,5.37334669]
[1729946975026,0.40443,2475.4,2475.3,4.96889669]
[1729946975318,0.40443,2475.4,2475.3,4.51919669]
[1729946975522,1.23343,2475.4,2475.3,4.51919669]
[1729946975711,1.67123,2475.4,2475.3,4.51919669]
[1729946976215,2.98262669,2475.4,2475.3,3.2078]
[1729946976612,2.98262669,2475.4,2474.8,3.2078]
[1729946976613,9.82599669,2475.4,2474.8,3.2078]
[1729946976813,9.82599669,2475.4,2474.7,0.40454]
[1729946976814,0.40453,2474.8,2474.7,0.40454]
[1729946977015,0.40453,2474.8,2474.7,1.71593669]
[1729946977717,0.40453,2474.8,2474.7,1.31139669]
[1729946978019,0.40453,2474.8,2474.7,1.71594669]
[1729946978220,0.83,2474.9,2474.7,1.71594669]
[1729946978221,0.83,2474.9,2474.7,1.31139669]
[1729946978422,1.23453,2474.9,2474.8,1.31139669]
[1729946979020,2.06353,2474.9,2474.8,1.31139669]
[1729946979223,2.06353,2474.9,2474.8,1.71592669]
[1729946979520,1.65573,2474.9,2474.8,1.71592669]
[1729946979723,1.65573,2474.9,2474.8,1.31139669]
[1729946980024,1.65573,2474.9,2474.8,1.71592669]
[1729946980926,0.829,2474.9,2474.8,1.71592669]
[1729946981516,1.23352,2474.9,2474.8,1.71592669]
[1729946983730,0.829,2474.9,2474.8,1.71592669]
[1729946984329,1.23352,2474.9,2474.8,1.71592669]
[1729946985128,1.23352,2474.9,2474.8,1.31139669]
[1729946985717,1.23352,2474.9,2474.8,1.71592669]
[1729946985922,1.23352,2474.9,2474.8,1.31139669]
[1729946986422,1.23352,2474.9,2474.8,1.71592669]
[1729946986617,1.23352,2474.9,2474.8,1.31139669]
[1729946989524,0.829,2474.9,2474.8,1.71592669]
[1729946989927,1.23352,2474.9,2474.8,1.71592669]
[1729946990529,1.23352,2474.9,2474.8,1.31139669]
[1729946990729,1.23352,2474.9,2474.8,1.71592669]
[1729946997843,0.40448,2475.1,2475.0,0.4045]
[1729946998042,1.23448,2475.1,2475.0,1.71589669]
[1729946998437,1.23448,2475.1,2475.0,2.56839669]
[1729946999140,4.51919669,2475.3,2475.0,2.16389669]
[1729946999342,1.2707,2475.5,2475.2,1.31139669]
[1729946999547,1.23445,2475.4,2475.3,1.75319669]
[1729946999740,1.23445,2475.4,2475.3,2.15764669]
[1729947000539,0.83,2475.4,2475.3,2.15764669]
[1729947003051,1.23443,2475.4,2475.3,2.15764669]
[1729947003246,1.31139669,2475.6,2475.4,0.40443]
[1729947003247,0.40443,2475.5,2475.4,0.40443]
[1729947003449,0.40443,2475.5,2475.4,2.60852669]
[1729947003744,1.23441,2475.6,2475.5,0.40442]
[1729947003947,1.23441,2475.6,2475.5,1.31139669]
[1729947004141,0.83,2475.6,2475.5,1.71581669]
[1729947004346,1.2334,2475.7,2475.6,0.4044]
[1729947004546,3.2078,2476.1,2475.6,8.55839669]
[1729947004844,1.71571669,2476.1,2476.0,1.31139669]
[1729947005048,1.31139669,2476.0,2475.7,2.14426669]
[1729947005255,0.40437,2475.8,2475.7,2.14426669]
[1729947005647,0.40437,2475.8,2475.7,1.73989669]
[1729947005847,0.40437,2475.8,2475.7,2.14428669]
[1729947009956,0.40436,2475.9,2475.8,0.40437]
[1729947010153,0.40436,2475.9,2475.8,1.71576669]
[1729947010550,0.40436,2475.9,2475.8,1.31139669]
[1729947013458,0.40436,2475.9,2475.8,1.71576669]
[1729947014157,0.40436,2475.9,2475.8,1.31139669]
[1729947014748,1.31139669,2475.9,2475.7,1.73989669]
[1729947014955,0.85137,2475.8,2475.7,1.73989669]
[1729947015946,0.40441,2475.6,2475.5,1.71581669]
[1729947016146,0.40441,2475.6,2475.5,2.12551669]
[1729947018554,0.40441,2475.6,2475.5,1.72109669]
[1729947020153,0.40441,2475.6,2475.5,2.12551669]
[1729947020555,0.40441,2475.6,2475.5,1.72109669]
[1729947021057,0.40441,2475.6,2475.5,2.12551669]
[1729947021751,0.40441,2475.6,2475.5,1.72109669]
[1729947024061,0.85031,2475.6,2475.5,1.72109669]
[1729947024554,0.85031,2475.6,2475.5,2.12551669]
[1729947024760,0.85031,2475.6,2475.5,1.72109669]
[1729947025866,0.40443,2475.4,2475.3,3.61225]
[1729947026051,0.40443,2475.4,2475.3,4.92364669]
[1729947026561,0.40443,2475.4,2475.3,1.71584669]
[1729947029455,0.40443,2475.5,2475.4,0.40443]
[1729947029657,0.40443,2475.5,2475.4,1.71582669]
[1729947030564,0.40443,2475.5,2475.4,1.31139669]
[1729947032056,0.40445,2475.3,2475.2,0.4236]
[1729947032261,1.31139669,2475.5,2475.1,1.31139669]
[1729947032262,0.40447,2475.2,2475.1,1.31139669]
[1729947033060,0.40447,2475.2,2475.1,1.71587669]
[1729947033456,0.40447,2475.2,2475.1,1.31139669]
[1729947036973,0.40448,2475.1,2475.0,0.40449]
[1729947038774,2.54829669,2475.4,2475.0,1.31139669]
[1729947039073,1.23341,2475.6,2475.5,0.40442]
[1729947039265,1.23341,2475.6,2475.5,1.71581669]
[1729947041467,0.829,2475.6,2475.5,1.71581669]
[1729947042166,1.2334,2475.6,2475.5,2.14531669]
[1729947042675,0.40442,2475.5,2475.4,4.51919669]
[1729947042872,2.14039669,2475.6,2475.3,2.15423669]
[1729947043065,2.14039669,2475.6,2475.3,1.74979669]
[1729947043265,0.40443,2475.4,2475.3,1.74979669]
[1729947043871,0.40443,2475.4,2475.3,2.15424669]
[1729947044566,0.40443,2475.4,2475.3,2.58354669]
[1729947059479,1.71582669,2475.4,2475.3,0.8677]
[1729947059678,1.71582669,2475.4,2475.3,0.4293]
[1729947060183,0.40448,2475.2,2475.1,0.40448]
[1729947060381,0.40448,2475.2,2475.1,1.71587669]
[1729947061177,0.40448,2475.2,2475.1,1.31139669]
[1729947061379,0.40448,2475.2,2474.9,0.85001]
[1729947061380,0.4045,2475.0,2474.9,0.85001]
[1729947061581,1.71589669,2475.0,2474.9,0.4455]
[1729947062083,1.71589669,2475.0,2474.8,1.31139669]
[1729947062084,0.40452,2474.9,2474.8,1.31139669]
[1729947062278,0.81612,2474.9,2474.8,1.31139669]
[1729947062474,0.4116,2474.9,2474.7,3.2078]
[1729947062678,0.40453,2474.8,2474.7,4.51919669]
[1729947063078,0.40453,2474.8,2474.7,1.71594669]
[1729947063472,2.12752669,2474.9,2474.8,0.40453]
[1729947063676,0.81613,2474.9,2474.8,1.71592669]
[1729947064882,0.4415,2475.0,2474.8,1.31139669]
[1729947065086,0.4415,2475.0,2474.9,1.71591669]
[1729947065277,0.846,2475.0,2474.9,1.71591669]
[1729947068282,1.675,2475.0,2474.9,1.71591669]
[1729947070682,0.40452,2474.9,2474.8,0.40452]
[1729947070884,0.40452,2474.9,2474.8,1.71591669]
[1729947071589,0.40452,2474.9,2474.8,1.31139669]
[1729947071790,0.40452,2474.9,2474.8,1.71592669]
[1729947074588,0.40452,2474.9,2474.8,1.31139669]
[1729947074988,0.85482,2474.9,2474.8,1.31139669]
[1729947075288,0.40453,2474.8,2474.7,1.71593669]
[1729947077194,0.40453,2474.9,2474.8,0.40453]
[1729947077391,0.40447,2475.2,2475.1,0.40447]
[1729947077585,0.829,2475.4,2475.1,4.51919669]
[1729947077789,1.23343,2475.4,2475.3,1.71584669]
[1729947078289,1.23343,2475.4,2475.3,2.16484669]
[1729947080305,0.82111,2475.6,2475.5,0.40442]
[1729947080498,1.65011,2475.6,2475.5,1.71581669]
[1729947081693,2.96150669,2475.6,2475.5,1.71581669]
[1729947084699,1.23341,2475.6,2475.5,1.71581669]
[1729947085693,1.2334,2475.6,2475.5,1.71581669]
[1729947089993,2.14039669,2475.6,2475.3,4.96819669]
[1729947090202,0.40443,2475.4,2475.3,5.37263669]
[1729947090898,0.40443,2475.4,2475.3,4.96819669]
[1729947091200,0.40443,2475.4,2475.3,1.76039669]
[1729947092398,0.40443,2475.4,2475.3,2.16484669]
[1729947093104,0.40443,2475.4,2475.3,1.76039669]
[1729947094112,0.40443,2475.4,2475.3,1.31139669]
[1729947095904,0.40443,2475.4,2475.3,1.71584669]
[1729947104002,0.40443,2475.4,2475.3,1.31139669]
[1729947104603,0.40443,2475.4,2475.3,1.71584669]
[1729947107410,0.40443,2475.4,2475.3,1.31139669]
[1729947107612,0.84143,2475.4,2475.3,1.31139669]
[1729947107811,0.84143,2475.4,2475.3,1.71584669]
[1729947108917,0.84143,2475.4,2475.3,1.31139669]
[1729947109229,0.84143,2475.4,2475.3,1.71584669]
[1729947109718,0.84143,2475.4,2475.3,1.31139669]
[1729947110410,0.84143,2475.4,2475.3,1.71584669]
[1729947111710,0.84143,2475.4,2475.3,1.31139669]
[1729947113217,0.84143,2475.4,2475.3,1.71584669]
[1729947114817,0.84143,2475.4,2475.3,1.31139669]
[1729947115808,0.84143,2475.4,2475.3,1.71584669]
[1729947117019,0.84143,2475.4,2475.3,1.31139669]
[1729947117821,0.84143,2475.4,2475.3,1.71584669]
[1729947118623,0.40443,2475.4,2475.3,1.71584669]
[1729947119123,0.829,2475.5,2475.4,0.40443]
[1729947119124,1.23343,2475.5,2475.4,0.40443]
[1729947119322,1.23343,2475.5,2475.4,1.71582669]
[1729947122510,0.829,2475.5,2475.4,1.71582669]
[1729947122710,7.3908,2476.2,2475.9,0.40435]
[1729947123028,1.64583,2476.1,2476.0,1.71573669]
[1729947123317,0.40431,2476.2,2476.1,0.40432]
[1729947123627,2.14039669,2476.2,2475.9,4.51919669]
[1729947123821,0.40434,2476.0,2475.9,3.61215]
[1729947124710,0.40434,2476.0,2475.9,3.2078]
[1729947124914,5.35059669,2476.0,2475.6,4.51919669]
[1729947125118,1.71578669,2475.7,2475.6,4.92358669]
[1729947125917,1.71578669,2475.7,2475.6,3.2078]
[1729947128125,0.40439,2475.7,2475.6,4.51919669]
[1729947128321,1.71578669,2475.7,2475.6,4.51919669]
[1729947128523,1.71578669,2475.7,2475.6,3.2078]
[1729947129325,0.40442,2475.5,2475.4,2.56372669]
[1729947129930,0.40442,2475.5,2475.4,2.69019048]
[1729947130124,0.40442,2475.5,2475.4,2.56372669]
[1729947130730,0.40442,2475.5,2475.4,2.69019048]
[1729947131227,0.40442,2475.5,2475.4,2.56372669]
[1729947131424,0.40442,2475.5,2475.4,2.15929669]
[1729947131737,0.40442,2475.5,2475.4,2.56372669]
[1729947131924,1.31139669,2475.7,2475.4,2.15929669]
[1729947132130,1.31139669,2475.7,2475.5,1.71581669]
[1729947132131,0.40442,2475.6,2475.5,1.71581669]
[1729947133136,0.40442,2475.6,2475.5,1.31139669]
[1729947134021,0.40442,2475.5,2475.4,0.8479]
[1729947134225,1.71581669,2475.5,2475.4,0.8479]
[1729947134526,2.12651669,2475.5,2475.4,0.4147]
[1729947134720,0.81512,2475.5,2475.4,2.13052669]
[1729947134933,0.40442,2475.5,2475.4,2.13052669]
[1729947135534,1.23242,2475.5,2475.4,2.13052669]
[1729947137536,4.04,2475.4,2474.8,1.0604211]
[1729947137735,4.04,2475.4,2474.3,0.63106074]
[1729947137736,2.62279338,2474.9,2474.0,0.63106074]
[1729947137935,0.40468,2473.9,2473.6,1.31139669]
[1729947138232,0.40468,2473.9,2473.8,1.31139669]
[1729947138535,1.29168,2474.0,2473.8,1.31139669]
[1729947138933,0.40468,2473.9,2473.8,1.31139669]
[1729947140242,0.887,2474.0,2473.7,0.4395]
[1729947140537,0.4047,2473.8,2473.7,0.4395]
[1729947156650,3.6125,2473.8,2473.7,0.4395]
[1729947157350,0.4047,2473.8,2473.7,0.4395]
[1729947157561,3.6125,2473.8,2473.7,0.4395]
[1729947157857,0.4047,2473.8,2473.7,0.4395]
[1729947158060,3.6125,2473.8,2473.7,0.4395]
[1729947159957,0.4047,2473.8,2473.7,0.4395]
[1729947160154,3.6125,2473.8,2473.7,0.4395]
[1729947162256,4.92485804,2473.8,2473.7,0.4395]
[1729947163948,3.6125,2473.8,2473.7,0.4395]
[1729947165153,0.4047,2473.8,2473.7,0.4395]
[1729947165354,3.6125,2473.8,2473.7,0.4395]
[1729947165761,0.4047,2473.8,2473.7,0.4395]
[1729947165959,3.6125,2473.8,2473.7,0.4395]
[1729947167463,1.71705804,2473.8,2473.7,0.4395]
[1729947167664,4.92485804,2473.8,2473.7,0.4395]
[1729947168364,3.6125,2473.8,2473.7,0.4395]
[1729947168861,4.92485804,2473.8,2473.7,0.4395]
[1729947169770,1.71705804,2473.8,2473.7,0.4395]
[1729947169968,4.92485804,2473.8,2473.7,0.4395]
[1729947170367,1.71705804,2473.8,2473.7,0.4395]
[1729947170569,4.92485804,2473.8,2473.7,0.4395]
[1729947171368,1.71705804,2473.8,2473.7,0.4395]
[1729947173063,3.6125,2473.8,2473.7,0.4395]
[1729947173371,4.92485804,2473.8,2473.7,0.4395]
[1729947177470,5.79785804,2473.8,2473.7,0.4395]
[1729947180376,2.59005804,2473.8,2473.7,0.4395]
[1729947180574,5.79785804,2473.8,2473.7,0.4395]
[1729947181475,2.59005804,2473.8,2473.7,0.4395]
[1729947181778,5.79785804,2473.8,2473.7,0.4395]
[1729947185278,3.6125,2473.8,2473.7,0.4395]
[1729947185587,4.92485804,2473.8,2473.7,4.4819]
[1729947185977,4.92485804,2473.8,2473.7,4.9153]
[1729947187582,1.71705804,2473.8,2473.7,4.9153]
[1729947189084,1.71705804,2473.8,2473.7,0.8729]
[1729947192982,1.71705804,2473.8,2473.7,0.4334]
[1729947193289,1.71705804,2473.8,2473.5,0.4174]
[1729947193290,0.40473,2473.6,2473.5,0.4174]
[1729947193592,4.92488804,2473.6,2473.5,0.8479]
[1729947197381,8.56255804,2473.6,2473.4,0.4323]
[1729947197586,2.59010804,2473.5,2473.4,0.4323]
[1729947197977,3.90246608,2473.5,2473.4,0.4323]
[1729947198380,3.49771608,2473.5,2473.1,0.8568]
[1729947198577,1.88488,2473.5,2473.2,0.418]
[1729947198782,1.71713804,2473.3,2473.2,0.418]
[1729947198978,3.02949608,2473.3,2473.2,0.418]
[1729947200078,1.71713804,2473.3,2473.2,0.418]
[1729947203879,0.40478,2473.3,2473.2,0.418]
[1729947204091,1.71713804,2473.3,2473.2,0.418]
[1729947205582,7.07269608,2473.3,2473.2,0.418]
[1729947205792,0.40479,2473.2,2473.1,0.4412]
[1729947205988,3.02950608,2473.2,2473.1,0.4412]
[1729947206197,7.07270608,2473.2,2473.1,0.4412]
[1729947207293,3.02950608,2473.2,2473.1,0.4412]
[1729947209491,2.62471608,2473.2,2472.9,0.8418]
[1729947209691,4.92498804,2473.0,2472.9,0.8418]
[1729947209887,5.78398804,2473.0,2472.9,0.8418]
[1729947211493,2.57618804,2473.0,2472.9,0.8418]
[1729947211696,5.78398804,2473.0,2472.9,0.8418]
[1729947212500,9.82798804,2473.0,2472.9,0.8418]
[1729947213094,5.78398804,2473.0,2472.9,0.8418]
[1729947213297,4.47163,2473.0,2472.9,0.8418]
[1729947213505,5.78398804,2473.0,2472.9,0.8418]
[1729947216109,5.78398804,2473.0,2472.9,0.4248]
[1729947218002,3.61263,2473.0,2472.9,0.4248]
[1729947218203,5.78398804,2473.0,2472.9,0.4248]
[1729947220004,2.57618804,2473.0,2472.9,0.4248]
[1729947220505,5.78398804,2473.0,2472.9,0.4248]
[1729947224012,2.57618804,2473.0,2472.9,0.4248]
[1729947224215,5.78398804,2473.0,2472.9,0.4248]
[1729947224907,4.92498804,2473.0,2472.9,0.4248]
[1729947225108,4.21972,2473.4,2472.9,0.4248]
[1729947225308,1.71717804,2473.1,2473.0,0.4399]
[1729947225613,5.78397804,2473.1,2473.0,0.84473]
[1729947226110,5.78397804,2473.1,2473.0,0.4399]
[1729947226308,7.09633608,2473.1,2473.0,0.4399]
[1729947226503,11.13953608,2473.1,2473.0,0.4399]
[1729947228110,0.40483,2473.0,2472.9,0.4248]
[1729947228414,1.71718804,2473.0,2472.9,0.4248]
[1729947228620,5.76118804,2473.0,2472.9,0.4248]
[1729947230814,8.96898804,2473.0,2472.9,0.4248]
[1729947233215,4.92498804,2473.0,2472.9,0.4248]
[1729947233618,1.71718804,2473.0,2472.9,0.4248]
[1729947233814,4.92498804,2473.0,2472.9,0.4248]
[1729947236711,4.92498804,2473.0,2472.9,4.87364]
[1729947236712,3.2078,2473.0,2472.9,4.87364]
[1729947237015,4.92498804,2473.0,2472.9,0.82964]
[1729947237418,4.92498804,2473.0,2472.9,0.4248]
[1729947238624,5.78298804,2473.0,2472.9,0.4248]
[1729947243627,9.82698804,2473.0,2472.9,0.4248]
[1729947245231,5.78298804,2473.0,2472.9,0.4248]
[1729947245816,9.82698804,2473.0,2472.9,0.4248]
[1729947246020,9.82698804,2473.0,2472.8,0.4082]
[1729947246021,0.40484,2472.9,2472.8,0.4082]
[1729947246227,1.71719804,2472.9,2472.8,0.4082]
[1729947246822,1.71719804,2472.9,2472.8,0.8405]
[1729947249731,4.92499804,2472.9,2472.8,0.8405]
[1729947251623,4.92499804,2472.9,2472.8,1.24536]
[1729947252028,4.52015804,2472.9,2472.8,1.24536]
[1729947252223,5.78299804,2472.9,2472.8,0.8405]
[1729947252830,5.78299804,2472.9,2472.8,1.24536]
[1729947254328,5.78299804,2472.9,2472.8,0.8405]
[1729947254826,5.78299804,2472.9,2472.8,1.24536]
[1729947256829,5.37815804,2472.9,2472.8,5.28936]
[1729947258332,4.0658,2472.9,2472.8,5.28936]
[1729947258530,4.0658,2472.9,2472.8,5.41595427]
[1729947258531,5.37815804,2472.9,2472.8,5.41595427]
[1729947259227,5.37815804,2472.9,2472.8,1.24536]
[1729947259928,5.78299804,2472.9,2472.8,0.8405]
[1729947260531,5.78299804,2472.9,2472.8,1.24536]
[1729947262027,2.57519804,2472.9,2472.8,1.24536]
[1729947264325,3.2078,2473.1,2472.8,4.8845]
[1729947264528,3.2078,2473.1,2473.0,0.40483]
[1729947264726,4.52015804,2473.1,2473.0,4.44803]
[1729947264932,4.52015804,2473.1,2473.0,4.57461602]
[1729947265440,4.92496804,2473.1,2473.0,4.44803]
[1729947266744,4.52015804,2473.1,2473.0,4.44803]
[1729947267136,4.92496804,2473.1,2473.0,4.44803]
[1729947268444,4.52015804,2473.1,2473.0,4.44803]
[1729947268738,1.31235804,2473.1,2473.0,5.35555804]
[1729947269044,1.31235804,2473.1,2473.0,5.76038804]
[1729947269743,1.31235804,2473.1,2473.0,4.44803]
[1729947271942,1.71716804,2473.1,2473.0,4.44803]
[1729947272441,0.40483,2473.0,2472.9,3.61263]
[1729947272642,1.71718804,2473.0,2472.9,3.61263]
[1729947272941,1.71718804,2473.0,2472.9,7.65663]
[1729947274746,1.71718804,2473.0,2472.9,4.44883]